bitfinex-derivatives/quotes_SOLF0:USTF0_20260220
["timestamp","ask_amount","ask_price","bid_price","bid_amount"]
[1771588711785,10.95516961,83.649,83.596,10.70447473]
[1771588712575,3.08767942,83.65,83.596,10.70447473]
[1771588712576,10.95516961,83.639,83.596,10.70447473]
[1771588712779,10.95516961,83.629,83.581,10.70447473]
[1771588713289,10.95516961,83.629,83.591,10.70447473]
[1771588713486,10.7654,83.639,83.6,3.08767942]
[1771588713687,10.7654,83.639,83.601,10.70447473]
[1771588713882,10.95516961,83.641,83.601,10.70447473]
[1771588714187,10.95516961,83.641,83.61,3.08767942]
[1771588715183,10.7642,83.649,83.601,10.70447473]
[1771588715384,10.95516961,83.654,83.612,10.7688]
[1771588715595,10.7629,83.658,83.62,13.79215415]
[1771588715786,10.7629,83.658,83.621,10.70447473]
[1771588717082,10.7633,83.655,83.621,10.70447473]
[1771588718887,10.75291774,83.679,83.631,10.73614757]
[1771588719193,10.75291774,83.679,83.64,3.08767942]
[1771588719394,10.75291774,83.679,83.641,10.73614757]
[1771588720682,10.75291774,83.679,83.642,10.7649]
[1771588720885,10.75291774,83.679,83.643,10.73614757]
[1771588725891,10.75291774,83.669,83.631,10.73614757]
[1771588729788,21.51441774,83.669,83.631,10.73614757]
[1771588731090,10.75291774,83.659,83.618,10.73614757]
[1771588732494,3.08767942,83.65,83.601,10.73614757]
[1771588732799,10.7642,83.649,83.604,10.73614757]
[1771588733099,3.08767942,83.65,83.604,10.73614757]
[1771588733296,10.75291774,83.659,83.61,3.08767942]
[1771588733499,10.75291774,83.659,83.611,10.73614757]
[1771588735591,10.75291774,83.659,83.582,10.73614757]
[1771588735796,3.08767942,83.6,83.567,10.73614757]
[1771588735993,3.08767942,83.61,83.567,10.73614757]
[1771588736194,10.75291774,83.619,83.567,10.73614757]
[1771588736195,3.08767942,83.6,83.567,10.73614757]
[1771588736393,14.78246628,83.661,83.538,23.72195106]
[1771588736394,3.08767942,83.61,83.571,10.73614757]
[1771588736598,10.75291774,83.618,83.571,10.73614757]
[1771588737403,3.08767942,83.61,83.571,10.73614757]
[1771588737908,3.08767942,83.6,83.558,10.73614757]
[1771588738508,10.75291774,83.609,83.561,10.73614757]
[1771588739300,3.08767942,83.6,83.561,10.73614757]
[1771588740703,3.08767942,83.6,83.56,3.08767942]
[1771588740704,10.75291774,83.609,83.562,10.73614757]
[1771588741209,3.08767942,83.6,83.562,10.73614757]
[1771588742308,10.75291774,83.609,83.562,10.73614757]
[1771588742509,3.08767942,83.6,83.562,10.73614757]
[1771588744412,10.75291774,83.609,83.562,10.73614757]
[1771588744614,3.08767942,83.6,83.562,10.73614757]
[1771588745517,10.75291774,83.609,83.562,10.73614757]
[1771588746016,10.75291774,83.609,83.538,23.72195106]
[1771588746017,3.08767942,83.61,83.571,10.68719957]
[1771588748719,10.52987263,83.609,83.571,10.68719957]
[1771588749614,3.08767942,83.6,83.549,10.28557826]
[1771588749810,13.61755205,83.6,83.551,10.28557826]
[1771588752309,13.61755205,83.6,83.554,10.28557826]
[1771588752522,13.61755205,83.6,83.56,3.08767942]
[1771588752715,13.61755205,83.6,83.56,10.28557826]
[1771588754313,11.08759498,83.65,83.538,23.72195106]
[1771588754314,10.52987263,83.614,83.571,10.28557826]
[1771588754510,10.52987263,83.626,83.58,3.08767942]
[1771588754719,10.52987263,83.626,83.581,10.28557826]
[1771588754923,3.08767942,83.62,83.581,10.28557826]
[1771588756025,10.52987263,83.609,83.569,10.28557826]
[1771588756628,3.08767942,83.6,83.569,10.28557826]
[1771588756832,10.7697,83.605,83.569,10.28557826]
[1771588759923,10.52987263,83.609,83.57,13.37325768]
[1771588760620,10.7705,83.599,83.57,10.28557826]
[1771588761228,10.7694,83.608,83.57,10.28557826]
[1771588761424,21.5289,83.646,83.503,21.5658]
[1771588761425,10.52987263,83.599,83.554,10.28557826]
[1771588761626,3.08767942,83.59,83.554,10.28557826]
[1771588761929,10.52987263,83.643,83.56,3.08767942]
[1771588762130,10.52987263,83.609,83.561,10.28557826]
[1771588762928,10.52987263,83.599,83.549,10.28557826]
[1771588763129,10.52987263,83.599,83.551,10.28557826]
[1771588763328,10.52987263,83.599,83.56,3.08767942]
[1771588763631,10.52987263,83.599,83.56,13.37325768]
[1771588763933,10.52987263,83.599,83.561,10.28557826]
[1771588764133,3.08767942,83.6,83.561,10.28557826]
[1771588764529,10.52987263,83.598,83.55,3.08767942]
[1771588764835,3.08767942,83.59,83.55,3.08767942]
[1771588765034,3.08767942,83.59,83.549,10.28557826]
[1771588765431,8.8099082,83.64,83.549,10.28557826]
[1771588765432,3.08767942,83.58,83.549,10.28557826]
[1771588765637,3.08767942,83.58,83.531,10.28557826]
[1771588766835,10.7731,83.579,83.531,10.28557826]
[1771588767334,21.30297263,83.579,83.531,10.28557826]
[1771588768330,21.30297263,83.579,83.533,10.28557826]
[1771588773939,21.30337263,83.576,83.533,10.28557826]
[1771588775037,3.09446492,83.57,83.533,10.28557826]
[1771588775243,13.86876492,83.57,83.533,10.28557826]
[1771588775441,13.86876492,83.57,83.524,10.7801]
[1771588775442,10.52987263,83.569,83.525,10.28557826]
[1771588775635,10.7757,83.559,83.525,10.28557826]
[1771588776040,21.30557263,83.559,83.525,10.28557826]
[1771588776237,3.09446492,83.55,83.513,10.28557826]
[1771588776437,10.52987263,83.549,83.513,10.28557826]
[1771588776837,10.7771,83.548,83.513,10.28557826]
[1771588777144,9.72130836,83.583,83.513,10.28557826]
[1771588777342,9.72130836,83.559,83.513,10.28557826]
[1771588779845,3.09446492,83.57,83.523,9.90665786]
[1771588780543,9.72130836,83.569,83.523,9.90665786]
[1771588780846,9.72130836,83.569,83.52,3.09446492]
[1771588780847,9.72130836,83.569,83.525,9.90665786]
[1771588782046,9.72130836,83.583,83.531,9.90665786]
[1771588782348,3.09446492,83.58,83.531,9.90665786]
[1771588783342,9.72130836,83.579,83.531,9.90665786]
[1771588784751,10.7733,83.577,83.531,9.90665786]
[1771588786351,9.72130836,83.576,83.531,9.90665786]
[1771588787544,10.7737,83.575,83.531,9.90665786]
[1771588788448,3.09446492,83.57,83.531,9.90665786]
[1771588790253,11.08759498,83.606,83.471,35.88]
[1771588790254,3.09446492,83.56,83.519,9.90665786]
[1771588790456,9.72130836,83.559,83.519,9.90665786]
[1771588790652,3.09446492,83.55,83.519,9.90665786]
[1771588790844,3.09446492,83.55,83.508,9.90665786]
[1771588791647,9.72130836,83.549,83.508,9.90665786]
[1771588791854,3.09446492,83.54,83.508,9.90665786]
[1771588792051,9.72130836,83.549,83.508,9.90665786]
[1771588792358,3.09446492,83.54,83.508,9.90665786]
[1771588797451,3.09446492,83.54,83.456,21.5779]
[1771588797452,3.09446492,83.53,83.497,9.90665786]
[1771588797654,3.09446492,83.52,83.486,9.90665786]
[1771588798149,3.09446492,83.52,83.488,9.90665786]
[1771588798350,3.09446492,83.54,83.491,9.90665786]
[1771588798858,3.09446492,83.54,83.499,9.90665786]
[1771588799156,9.72130836,83.577,83.521,9.90665786]
[1771588799460,12.81577328,83.57,83.521,9.90665786]
[1771588799761,9.72130836,83.569,83.521,9.90665786]
[1771588799962,3.09446492,83.56,83.521,9.90665786]
[1771588800457,9.72130836,83.583,83.541,9.90665786]
[1771588800666,3.09446492,83.59,83.541,9.90665786]
[1771588801163,3.09446492,83.59,83.55,3.09446492]
[1771588801465,3.09446492,83.59,83.551,9.90665786]
[1771588803059,9.72130836,83.589,83.54,3.09446492]
[1771588803267,9.72130836,83.579,83.536,9.90665786]
[1771588803962,3.09446492,83.57,83.536,9.90665786]
[1771588804163,11.04791099,83.613,83.49,62.0]
[1771588804164,3.09446492,83.58,83.54,3.09446492]
[1771588804363,3.09446492,83.58,83.541,9.48694748]
[1771588804667,10.2196487,83.559,83.516,9.48694748]
[1771588804856,3.09446492,83.56,83.516,9.48694748]
[1771588805062,3.09446492,83.55,83.501,9.48694748]
[1771588805263,3.09446492,83.54,83.501,9.48694748]
[1771588806264,3.09446492,83.53,83.501,9.48694748]
[1771588806861,3.09446492,83.53,83.489,10.7846]
[1771588807063,3.09446492,83.53,83.485,9.48694748]
[1771588807462,3.09446492,83.52,83.485,9.48694748]
[1771588807658,3.09446492,83.51,83.485,9.48694748]
[1771588807856,3.09446492,83.52,83.485,9.48694748]
[1771588808066,11.04791099,83.556,83.47,3.09446492]
[1771588808067,3.09446492,83.51,83.471,9.79345283]
[1771588809065,11.04791099,83.551,83.438,2.08402576]
[1771588809066,3.09446492,83.54,83.491,9.79345283]
[1771588809265,9.62451417,83.549,83.501,9.79345283]
[1771588809563,3.09446492,83.53,83.487,9.79345283]
[1771588810673,3.09446492,83.55,83.501,9.79345283]
[1771588810866,3.09446492,83.55,83.511,9.79345283]
[1771588811061,3.09446492,83.56,83.511,9.79345283]
[1771588811463,9.62451417,83.569,83.511,9.79345283]
[1771588811670,3.09446492,83.56,83.52,12.88791775]
[1771588812366,3.09446492,83.56,83.52,9.79345283]
[1771588813273,3.09446492,83.56,83.447,21.58]
[1771588813274,3.09446492,83.55,83.506,9.79345283]
[1771588813473,3.09446492,83.54,83.5,3.09446492]
[1771588813969,9.62451417,83.548,83.447,21.58]
[1771588813970,9.62451417,83.548,83.501,9.79345283]
[1771588814176,9.62451417,83.539,83.49,3.09446492]
[1771588814874,9.62451417,83.539,83.49,12.88791775]
[1771588815370,9.62451417,83.539,83.5,3.09446492]
[1771588815975,9.62451417,83.539,83.445,21.5806]
[1771588815976,9.62451417,83.569,83.52,3.09446492]
[1771588816275,9.62451417,83.569,83.521,9.79345283]
[1771588816472,9.62451417,83.569,83.47,21.5741]
[1771588816473,9.62451417,83.559,83.51,3.09446492]
[1771588816664,9.62451417,83.559,83.511,9.79345283]
[1771588816865,9.62451417,83.559,83.52,3.09446492]
[1771588817067,9.62451417,83.559,83.511,9.79345283]
[1771588817475,9.62451417,83.559,83.52,3.09446492]
[1771588817672,10.7731,83.58,83.53,3.09446492]
[1771588817673,8.8961542,83.579,83.53,3.09446492]
[1771588817974,3.09446492,83.55,83.504,9.79345283]
[1771588818275,13.87006492,83.56,83.504,9.79345283]
[1771588818474,3.09446492,83.56,83.51,12.88791775]
[1771588818974,3.09446492,83.56,83.511,9.79345283]
[1771588819271,12.71897909,83.56,83.511,9.79345283]
[1771588819964,9.62451417,83.559,83.511,9.79345283]
[1771588821077,3.09446492,83.55,83.511,9.79345283]
[1771588821278,9.62451417,83.549,83.496,9.79345283]
[1771588821472,9.62451417,83.549,83.5,3.09446492]
[1771588821670,9.62451417,83.549,83.502,9.79345283]
[1771588822368,3.09446492,83.56,83.511,9.79345283]
[1771588823176,10.7758,83.558,83.511,9.79345283]
[1771588823573,3.09446492,83.56,83.511,9.79345283]
[1771588823768,22.06692818,83.61,83.511,9.79345283]
[1771588823769,3.09446492,83.55,83.511,9.79345283]
[1771588823970,3.09446492,83.55,83.466,9.79345283]
[1771588823971,12.71897909,83.55,83.466,9.79345283]
[1771588824176,3.09446492,83.54,83.5,3.09446492]
[1771588824376,3.09446492,83.54,83.496,9.79345283]
[1771588824874,3.09446492,83.54,83.5,3.09446492]
[1771588825577,3.09446492,83.54,83.501,9.79345283]
[1771588825972,12.71897909,83.55,83.501,9.79345283]
[1771588826370,9.62451417,83.549,83.501,9.79345283]
[1771588826567,8.89166549,83.561,83.515,9.79345283]
[1771588826876,3.09446492,83.54,83.5,9.79345283]
[1771588827073,3.09446492,83.53,83.486,9.79345283]
[1771588827274,11.07298891,83.577,83.486,9.79345283]
[1771588827275,3.09446492,83.52,83.486,9.79345283]
[1771588827674,3.09446492,83.53,83.486,9.79345283]
[1771588829979,3.09778275,83.53,83.486,9.79345283]
[1771588830972,3.09778275,83.54,83.491,9.79345283]
[1771588831673,3.09778275,83.54,83.5,3.09778275]
[1771588831878,3.09778275,83.53,83.486,9.79345283]
[1771588832578,3.09778275,83.52,83.486,9.79345283]
[1771588833277,13.87858275,83.52,83.472,9.79345283]
[1771588834281,3.09778275,83.52,83.475,9.79345283]
[1771588834780,10.781,83.518,83.475,9.79345283]
[1771588835877,3.09778275,83.52,83.443,22.30343329]
[1771588835878,3.09778275,83.52,83.481,9.79345283]
[1771588836074,10.78,83.526,83.481,9.79345283]
[1771588836978,10.78,83.526,83.483,9.79345283]
[1771588837376,3.09778275,83.53,83.483,9.79345283]
[1771588837579,3.09778275,83.52,83.483,9.79345283]
[1771588839580,12.37717784,83.51,83.469,9.31903225]
[1771588839782,9.27939509,83.509,83.469,9.31903225]
[1771588840286,9.27939509,83.509,83.471,10.7869]
[1771588841286,9.27939509,83.509,83.469,9.31903225]
[1771588842482,3.09778275,83.5,83.462,10.7881]
[1771588842678,3.09778275,83.49,83.456,9.31903225]
[1771588842984,3.09778275,83.48,83.441,9.31903225]
[1771588843386,3.09778275,83.48,83.448,10.79]
[1771588843679,9.27939509,83.489,83.441,9.31903225]
[1771588843884,11.07298891,83.527,83.408,2.08479359]
[1771588843885,3.09778275,83.5,83.462,10.7881]
[1771588844280,9.27939509,83.499,83.451,9.31903225]
[1771588844473,3.09778275,83.49,83.451,9.31903225]
[1771588844774,3.09778275,83.47,83.433,9.31903225]
[1771588844978,3.09778275,83.47,83.42,3.09778275]
[1771588844979,9.27939509,83.469,83.421,9.31903225]
[1771588845378,3.09778275,83.46,83.421,9.31903225]
[1771588845882,3.09778275,83.46,83.429,10.7924]
[1771588846681,3.09778275,83.46,83.421,20.11243225]
[1771588846882,11.07298891,83.518,83.375,21.5986]
[1771588846883,3.09778275,83.45,83.408,9.31903225]
[1771588847283,9.27939509,83.449,83.408,9.31903225]
[1771588847489,3.09778275,83.44,83.408,9.31903225]
[1771588847678,3.09778275,83.44,83.391,9.31903225]
[1771588848688,3.09778275,83.44,83.392,20.11623225]
[1771588848878,9.27939509,83.449,83.392,20.11623225]
[1771588849084,3.09778275,83.43,83.392,20.11623225]
[1771588849282,3.09778275,83.43,83.392,9.31903225]
[1771588849479,3.09778275,83.44,83.392,9.31903225]
[1771588849885,3.09778275,83.43,83.392,9.31903225]
[1771588851791,12.37717784,83.43,83.38,12.416815]
[1771588852089,12.05354621,83.486,83.324,239.48]
[1771588852090,3.09778275,83.42,83.381,9.31903225]
[1771588854885,9.27939509,83.429,83.381,9.31903225]
[1771588855491,20.07189509,83.429,83.381,9.31903225]
[1771588856290,9.27939509,83.429,83.381,9.31903225]
[1771588857186,3.09778275,83.42,83.381,9.31903225]
[1771588857689,3.09778275,83.42,83.282,29.69437613]
[1771588857690,9.27939509,83.458,83.41,3.09778275]
[1771588858094,9.27939509,83.458,83.411,9.31903225]
[1771588860295,9.27939509,83.458,83.414,10.7943]
[1771588861490,9.27939509,83.458,83.411,9.31903225]
[1771588861694,9.27939509,83.458,83.42,3.09778275]
[1771588862592,3.09778275,83.47,83.421,9.31903225]
[1771588862793,9.27939509,83.469,83.421,9.31903225]
[1771588863387,9.27939509,83.469,83.43,3.09778275]
[1771588863587,9.27939509,83.469,83.431,9.31903225]
[1771588864690,3.09778275,83.48,83.44,3.09778275]
[1771588864890,9.53338223,83.482,83.44,12.59080273]
[1771588866395,3.09778275,83.48,83.44,12.59080273]
[1771588866696,8.80923594,83.536,83.45,3.09778275]
[1771588866697,9.53338223,83.495,83.45,3.09778275]
[1771588866992,175.0,83.569,83.47,3.09778275]
[1771588866993,9.53338223,83.515,83.47,3.09778275]
[1771588867295,8.81895828,83.513,83.47,3.09778275]
[1771588869198,8.81895828,83.519,83.48,3.09778275]
[1771588869391,3.09778275,83.55,83.5,3.09778275]
[1771588869598,3.09778275,83.55,83.501,9.22743566]
[1771588870294,8.81895828,83.549,83.51,3.09778275]
[1771588870997,3.09778275,83.55,83.501,9.22743566]
[1771588870998,10.7769,83.55,83.501,9.22743566]
[1771588871194,10.7769,83.55,83.52,3.09778275]
[1771588871395,10.7769,83.55,83.501,9.22743566]
[1771588871591,10.7769,83.55,83.51,3.09778275]
[1771588871990,10.7769,83.55,83.501,9.22743566]
[1771588873003,19.59585828,83.55,83.501,9.22743566]
[1771588873296,2.08345806,83.586,83.501,9.22743566]
[1771588873297,8.81895828,83.545,83.501,9.22743566]
[1771588874391,8.81895828,83.528,83.467,9.22743566]
[1771588874792,8.81895828,83.528,83.45,9.21369948]
[1771588874793,8.81895828,83.519,83.451,9.22743566]
[1771588875791,19.60225828,83.5,83.451,9.22743566]
[1771588877000,8.81895828,83.487,83.431,9.22743566]
[1771588877802,10.7852,83.485,83.433,9.22743566]
[1771588878000,9.21369948,83.5,83.433,9.22743566]
[1771588878001,8.81895828,83.484,83.433,9.22743566]
[1771588878501,10.7871,83.471,83.433,9.22743566]
[1771588879004,8.81895828,83.484,83.415,9.22743566]
[1771588879406,10.788,83.463,83.415,9.22743566]
[1771588880699,10.788,83.463,83.41,9.21369948]
[1771588880700,10.7869,83.472,83.417,9.22743566]
[1771588880902,8.81895828,83.484,83.417,9.22743566]
[1771588881107,10.7866,83.475,83.421,9.22743566]
[1771588881509,8.81895828,83.484,83.421,9.22743566]
[1771588881707,10.7876,83.467,83.421,9.22743566]
[1771588883295,8.81895828,83.482,83.421,9.22743566]
[1771588883898,8.81895828,83.48,83.421,9.22743566]
[1771588884099,8.81895828,83.479,83.421,9.22743566]
[1771588884706,8.81895828,83.477,83.421,9.22743566]
[1771588887312,8.81895828,83.473,83.407,9.22743566]
[1771588887511,9.21369948,83.5,83.393,9.22743566]
[1771588887512,8.81895828,83.459,83.393,9.22743566]
[1771588887807,8.81895828,83.459,83.4,10.7961]
[1771588890409,8.81895828,83.457,83.4,10.7961]
[1771588892013,8.81895828,83.457,83.408,10.7951]
[1771588893311,8.81895828,83.455,83.408,10.7951]
[1771588897917,8.81895828,83.455,83.416,10.794]
[1771588899215,8.81391073,83.509,83.425,9.24455116]
[1771588899415,8.81391073,83.509,83.441,9.24455116]
[1771588899613,8.81391073,83.519,83.451,9.24455116]
[1771588900323,8.81391073,83.519,83.477,10.7862]
[1771588901418,8.81391073,83.519,83.466,9.24455116]
[1771588901419,8.81391073,83.534,83.48,9.24455116]
[1771588902414,8.81391073,83.534,83.489,10.7846]
[1771588902616,8.81391073,83.534,83.48,9.24455116]
[1771588902617,8.81391073,83.519,83.449,9.24455116]
[1771588903424,8.81391073,83.519,83.455,9.24455116]
[1771588905026,8.81391073,83.516,83.455,9.24455116]
[1771588905324,8.81391073,83.516,83.44,9.24455116]
[1771588905518,21.5556,83.543,83.359,197.71757613]
[1771588905519,8.81391073,83.499,83.421,9.24455116]
[1771588906023,8.81391073,83.486,83.424,9.24455116]
[1771588906722,8.81391073,83.479,83.424,9.24455116]
[1771588906918,8.81391073,83.476,83.41,9.24455116]
[1771588907119,8.81391073,83.476,83.396,9.24455116]
[1771588907528,8.81391073,83.457,83.396,9.24455116]
[1771588907824,8.81391073,83.472,83.401,9.24455116]
[1771588908025,8.81391073,83.47,83.403,9.24455116]
[1771588908822,8.81391073,83.467,83.403,9.24455116]
[1771588909927,8.81391073,83.467,83.405,10.7955]
[1771588910519,8.81391073,83.467,83.413,9.24455116]
[1771588914725,9.23805506,83.48,83.413,9.24455116]
[1771588914726,19.60161073,83.466,83.413,9.24455116]
[1771588915030,8.81391073,83.465,83.413,9.24455116]
[1771588915731,8.81391073,83.479,83.413,9.24455116]
[1771588916323,9.23805506,83.48,83.413,9.24455116]
[1771588916324,8.81391073,83.473,83.413,9.24455116]
[1771588917128,8.81391073,83.459,83.395,9.24455116]
[1771588917736,8.81391073,83.447,83.395,9.24455116]
[1771588918434,9.23805506,83.46,83.395,9.24455116]
[1771588918435,19.60411073,83.446,83.395,9.24455116]
[1771588919233,10.7907,83.443,83.395,9.24455116]
[1771588921833,10.7917,83.435,83.395,9.24455116]
[1771588922040,8.81391073,83.445,83.38,9.24455116]
[1771588922236,8.81391073,83.439,83.38,9.24455116]
[1771588922434,8.81391073,83.419,83.352,9.24455116]
[1771588922737,8.81391073,83.419,83.338,10.8042]
[1771588922935,8.81391073,83.419,83.33,9.23805506]
[1771588922936,8.81391073,83.415,83.351,9.24455116]
[1771588923132,8.81391073,83.415,83.302,22.30343329]
[1771588923133,8.81391073,83.432,83.355,9.24455116]
[1771588923336,8.81391073,83.432,83.328,2.08695026]
[1771588923337,8.81391073,83.399,83.329,9.24455116]
[1771588923543,9.23805506,83.4,83.311,9.24455116]
[1771588923544,8.81391073,83.379,83.311,9.24455116]
[1771588923841,9.23805506,83.4,83.271,168.2004]
[1771588923842,8.81391073,83.399,83.331,9.24455116]
[1771588924540,9.23805506,83.41,83.342,9.17297241]
[1771588925243,20.03295506,83.41,83.348,9.17297241]
[1771588925438,8.8566796,83.429,83.351,9.17297241]
[1771588926337,8.8566796,83.427,83.351,9.17297241]
[1771588927044,8.72455568,83.409,83.351,9.17297241]
[1771588927542,8.72455568,83.408,83.351,9.17297241]
[1771588927939,8.72455568,83.408,83.31,62.0]
[1771588927940,8.72455568,83.427,83.354,8.66942993]
[1771588928544,8.72455568,83.427,83.358,8.66942993]
[1771588929038,8.72455568,83.427,83.359,19.47082993]
[1771588929245,8.72455568,83.427,83.359,8.66942993]
[1771588929640,8.72455568,83.409,83.359,8.66942993]
[1771588929841,8.72455568,83.409,83.331,8.66942993]
[1771588930243,8.72455568,83.389,83.331,8.66942993]
[1771588931246,8.72455568,83.405,83.331,8.66942993]
[1771588931442,9.23805506,83.45,83.351,8.66942993]
[1771588931443,8.72455568,83.422,83.351,8.66942993]
[1771588931642,8.72455568,83.422,83.356,8.66942993]
[1771588935754,19.51805568,83.421,83.356,8.66942993]
[1771588935942,8.72455568,83.437,83.371,8.66942993]
[1771588936849,9.23805506,83.45,83.373,8.66942993]
[1771588937348,8.72455568,83.449,83.373,8.66942993]
[1771588937849,10.7903,83.446,83.379,8.66942993]
[1771588938255,10.7914,83.437,83.384,8.66942993]
[1771588938552,9.23805506,83.46,83.391,8.66942993]
[1771588938851,10.79,83.448,83.395,8.66942993]
[1771588939039,8.72455568,83.465,83.395,8.66942993]
[1771588939350,10.7875,83.468,83.411,8.66942993]
[1771588939652,8.72455568,83.494,83.431,8.66942993]
[1771588939946,10.7836,83.498,83.433,8.66942993]
[1771588940151,8.72455568,83.511,83.433,8.66942993]
[1771588940546,10.785,83.487,83.433,8.66942993]
[1771588942943,10.785,83.487,83.4,9.23805506]
[1771588942944,10.7875,83.467,83.405,8.66942993]
[1771588943348,8.72455568,83.488,83.421,8.66942993]
[1771588943657,8.72455568,83.488,83.42,9.23805506]
[1771588943658,8.72455568,83.504,83.441,8.66942993]
[1771588943956,9.23805506,83.52,83.441,8.66942993]
[1771588945153,10.7821,83.51,83.441,8.66942993]
[1771588945853,10.7821,83.51,83.44,9.23805506]
[1771588945854,10.7821,83.51,83.447,8.66942993]
[1771588946155,10.7821,83.51,83.461,8.66942993]
[1771588946355,10.7801,83.525,83.461,8.66942993]
[1771588946557,8.72455568,83.538,83.45,9.23805506]
[1771588946558,8.72455568,83.538,83.481,8.66942993]
[1771588947851,10.7773,83.547,83.483,8.66942993]
[1771588948056,8.72455568,83.559,83.483,8.66942993]
[1771588948256,8.72455568,83.559,83.45,71.23805506]
[1771588948257,8.72455568,83.559,83.501,8.66942993]
[1771588948458,8.72455568,83.574,83.501,8.66942993]
[1771588949455,8.72455568,83.574,83.505,8.66942993]
[1771588949648,8.72455568,83.59,83.52,9.23805506]
[1771588949851,8.72455568,83.59,83.521,8.66942993]
[1771588950259,9.20897986,83.6,83.521,8.66942993]
[1771588950260,8.72455568,83.587,83.521,8.66942993]
[1771588951260,8.72455568,83.587,83.523,8.66942993]
[1771588952351,8.72455568,83.602,83.523,8.66942993]
[1771588952557,8.72455568,83.602,83.5,9.20897986]
[1771588952558,8.72455568,83.602,83.541,8.66942993]
[1771588952751,8.72455568,83.602,83.544,8.66942993]
[1771588952955,8.72455568,83.621,83.544,8.66942993]
[1771588953753,8.72455568,83.621,83.56,9.20897986]
[1771588953967,10.766,83.634,83.561,8.66942993]
[1771588954459,8.72455568,83.614,83.561,8.66942993]
[1771588955662,10.7687,83.613,83.561,8.66942993]
[1771588955859,8.72455568,83.612,83.561,8.66942993]
[1771588956364,9.20897986,83.63,83.561,8.66942993]
[1771588956365,8.72455568,83.609,83.561,8.66942993]
[1771588958362,10.7694,83.608,83.561,8.66942993]
[1771588958767,9.20897986,83.65,83.541,8.32738818]
[1771588958768,9.14556148,83.607,83.541,8.32738818]
[1771588958964,10.7722,83.586,83.541,8.32738818]
[1771588959169,9.14556148,83.607,83.541,8.32738818]
[1771588959759,10.772,83.587,83.541,8.32738818]
[1771588959960,9.14556148,83.586,83.541,8.32738818]
[1771588960160,10.772,83.587,83.541,8.32738818]
[1771588960367,9.09290795,83.65,83.571,8.32738818]
[1771588960560,9.14556148,83.629,83.554,10.7762]
[1771588960766,167.3908,83.675,83.501,57.4462]
[1771588960767,9.14556148,83.609,83.521,8.32738818]
[1771588961469,9.14556148,83.588,83.523,8.32738818]
[1771588962268,9.14556148,83.588,83.526,8.32738818]
[1771588962565,9.14556148,83.609,83.531,8.32738818]
[1771588962769,9.14556148,83.609,83.53,9.8216602]
[1771588962770,9.14556148,83.647,83.567,8.32738818]
[1771588963069,9.14556148,83.647,83.571,8.32738818]
[1771588963564,10.7672,83.625,83.571,8.32738818]
[1771588967459,9.14556148,83.631,83.571,8.32738818]
[1771588968165,9.14556148,83.631,83.583,10.7725]
[1771588968975,9.14556148,83.631,83.53,9.8216602]
[1771588968976,9.14556148,83.626,83.549,8.32738818]
[1771588969475,19.91366148,83.618,83.566,10.7747]
[1771588969668,9.14556148,83.617,83.566,10.7747]
[1771588970874,9.8216602,83.63,83.53,9.8216602]
[1771588970875,10.7667,83.628,83.575,10.7735]
[1771588971479,9.8216602,83.63,83.584,10.7724]
[1771588971673,9.14556148,83.634,83.584,10.7724]
[1771588972272,9.14556148,83.632,83.576,8.32738818]
[1771588973168,9.14556148,83.63,83.579,10.7729]
[1771588973772,9.14556148,83.63,83.576,8.32738818]
[1771588974171,9.14556148,83.649,83.576,8.32738818]
[1771588974376,9.14556148,83.649,83.601,10.7701]
[1771588975077,9.14556148,83.649,83.599,8.32738818]
[1771588975078,9.14556148,83.649,83.609,10.7691]
[1771588975282,9.14556148,83.665,83.599,8.32738818]
[1771588976077,9.14556148,83.684,83.632,10.7661]
[1771588976683,9.8216602,83.69,83.624,10.7672]
[1771588976684,9.14556148,83.682,83.624,10.7672]
[1771588977677,10.7602,83.679,83.624,10.7672]
[1771588977979,9.14556148,83.682,83.633,10.7661]
[1771588978786,9.14556148,83.682,83.642,10.7648]
[1771588979978,9.14556148,83.682,83.634,10.766]
[1771588980184,9.14556148,83.682,83.621,8.32738818]
[1771588980783,9.14556148,83.671,83.616,10.7682]
[1771588980987,9.14556148,83.669,83.602,8.32738818]
[1771588982690,9.14556148,83.661,83.606,10.7695]
[1771588983388,9.14556148,83.656,83.592,10.7713]
[1771588984389,9.14556148,83.656,83.596,10.7708]
[1771588985091,8.66919125,83.645,83.586,10.7721]
[1771588985491,8.66919125,83.645,83.577,8.52899066]
[1771588985990,9.8216602,83.65,83.577,8.52899066]
[1771588985991,8.66919125,83.624,83.577,8.52899066]
[1771588986186,8.66919125,83.624,83.567,10.7746]
[1771588986684,8.66919125,83.624,83.561,8.52899066]
[1771588986685,10.7686,83.614,83.561,8.52899066]
[1771588987290,10.7685,83.615,83.562,10.7752]
[1771588987489,10.7685,83.615,83.563,8.4799278]
[1771588988388,10.7685,83.615,83.565,8.4799278]
[1771588989293,8.66919125,83.624,83.55,9.8216602]
[1771588989294,19.43659125,83.624,83.567,8.4799278]
[1771588989492,8.730153,83.67,83.567,8.4799278]